fUST/lending_fUST_20251012
["ID","MTS","AMOUNT","RATE_DAILY","PERIOD"]
[390960009,1760232675569,-557.72363592,0.00021917,2]
[390960010,1760232675605,-187.39860508,0.00021917,2]
[390960011,1760232675641,-3521.89860508,0.00021917,2]
[390960012,1760232675679,-2956.21278984,0.00021917,2]
[390960013,1760232675722,-3334.5,0.00021917,2]
[390960014,1760232675759,-3331.01,0.00021917,2]
[390960015,1760232675806,-3334.5,0.00021917,2]
[390960016,1760232675841,-3331.01,0.00021917,2]
[390960017,1760232675888,-3334.5,0.00021917,2]
[390960018,1760232675924,-3331.01,0.00021917,2]
[390960019,1760232675952,-502.5783588,0.00021917,2]
[390960020,1760232676718,-269.77857477,0.00021907,10]
[390960021,1760232676737,-2852.34142523,0.00021907,10]
[390960022,1760232676746,-478.66857477,0.00021907,10]
[390960023,1760232676760,-2123.10142523,0.00021907,10]
[390960024,1760232676770,-1214.88857477,0.00021917,2]
[390960025,1760232676785,-5450.62142523,0.00021917,2]
[390960026,1760232676795,-1214.88857477,0.00021917,2]
[390960027,1760232676809,-3331.01,0.00021917,2]
[390960028,1760232676824,-2119.61142523,0.00021917,2]
[390960029,1760232676833,-1218.37857477,0.00021917,2]
[390960030,1760232676848,-5447.13142523,0.00021917,2]
[390960031,1760232676858,-236.86044423,0.00021917,2]
[390960032,1760232676868,-981.51813054,0.00021917,2]
[390960033,1760232676882,-3331.01,0.00021917,2]
[390960034,1760232676897,-502.5783588,0.00021917,2]
[390960035,1760232676913,-1850.40351066,0.00021917,2]
[390960036,1760232676923,-480.60874624,0.00021917,2]
[390960037,1760232676933,-1.8210255,0.00021917,2]
[390960038,1760232682232,-498.1789745,0.00021917,2]
[390960039,1760232682261,-2338.142051,0.00021917,2]
[390960040,1760232682295,-4327.367949,0.00021917,2]
[390960041,1760232682326,-640.9362637,0.00021917,2]
[390960042,1760232682355,-2052.6274726,0.00021917,2]
[390960043,1760232682394,-4612.8825274,0.00021917,2]
[390960044,1760232682453,-3334.5,0.00021917,2]
[390960045,1760232682475,-3331.01,0.00021917,2]
[390960046,1760232682574,-3334.5,0.00021917,2]
[390960047,1760232682598,-3331.01,0.00021917,2]
[390960048,1760232701366,403.84380753,0.000216,2]
[390960049,1760232702331,151.33399879,0.00030344,60]
[390960050,1760232722551,-171.60383586,0.00021817,2]
[390960051,1760232730242,150.0,0.00020747,2]
[390960052,1760232731615,150.0,0.00021735,2]
[390960055,1760232784378,10000.01,0.000216,2]
[390960056,1760232784401,10000.01,0.000216,2]
[390960057,1760232784423,10000.01,0.000216,2]
[390960058,1760232784446,10000.01,0.000216,2]
[390960059,1760232784467,10000.01,0.000216,2]
[390960060,1760232784491,10000.01,0.000216,2]
[390960061,1760232784513,10000.01,0.000216,2]
[390960062,1760232784535,10000.01,0.000216,2]
[390960063,1760232784557,10000.01,0.000216,2]
[390960064,1760232784582,10000.01,0.000216,2]
[390960065,1760232810306,150.0,0.00019031,2]
[390960066,1760232810751,150.0,0.00019938,2]
[390960067,1760232811796,222.9,0.00020844,2]
[390960068,1760232822928,-2417.17479595,0.00021374,2]
[390960069,1760232839124,750.0,0.00021374,2]
[390960070,1760232847928,5000.0,0.0002159,2]
[390960071,1760232853192,-214.72941379,0.0002159,10]
[390960072,1760232855418,-181.23276224,0.0002159,10]
[390960073,1760232857522,-272.67339183,0.0002159,10]
[390960074,1760232859067,159.0,0.00024,120]
[390960075,1760232862435,-214.72941379,0.0002159,10]
[390960076,1760232863883,-344.1081392,0.0002159,10]
[390960077,1760232870805,4250.01,0.0002159,2]
[390960078,1760232870960,749.99,0.0002159,2]
[390960079,1760232871885,-158.19736507,0.0002159,10]
[390960080,1760232889438,150.04,0.00019066,2]
[390960081,1760232890366,300.08,0.00019974,2]
[390960082,1760232890835,450.13,0.00020881,2]
[390960083,1760232892723,8349.77,0.00020891,2]
[390960084,1760232892743,1235.9978238,0.00020891,2]
[390960085,1760232893520,5000.0,0.0002159,2]
[390960086,1760232902294,300.0,0.00021589,2]
[390960087,1760232902352,300.0,0.00021589,2]
[390960088,1760232902377,300.0,0.00021589,2]
[390960089,1760232907738,1200.0,0.00021589,2]
[390960090,1760232909364,1664.0121762,0.0002159,2]
[390960091,1760232909389,184.95507918,0.0002159,2]
[390960092,1760232917195,5000.0,0.0002159,2]
[390960093,1760232940726,4815.05492082,0.0002159,2]
[390960094,1760232940748,184.94507918,0.0002159,2]
[390960095,1760232955431,17565.0,0.00025,120]
[390960096,1760232962328,300.0,0.00021589,2]
[390960097,1760232963482,5000.0,0.0002159,2]
[390960098,1760232975252,154.58,0.00018986,2]
[390960099,1760232975759,309.17,0.0001989,2]
[390960100,1760232976138,463.75,0.00020794,2]
[390960101,1760232986127,3587.56492082,0.0002159,2]
[390960102,1760232986149,1412.43507918,0.0002159,2]
[390960103,1760233008667,5000.0,0.0002159,2]
[390960104,1760233022258,300.0,0.00021589,2]
[390960105,1760233031535,3287.57492082,0.0002159,2]
[390960106,1760233031557,1712.42507918,0.0002159,2]
[390960107,1760233039451,180.54889743,0.0002159,2]
[390960108,1760233055200,175.43,0.0001897,2]
[390960109,1760233055419,5000.0,0.0002159,2]
[390960110,1760233055606,350.86,0.00019874,2]
[390960111,1760233056007,526.29,0.00020777,2]
[390960112,1760233064540,441.5442235,0.00020674,2]
[390960113,1760233078483,1612.91179989,0.0002159,2]
[390960114,1760233078507,3387.08820011,0.0002159,2]
[390960115,1760233082528,300.0,0.00021589,2]
[390960116,1760233086301,156.76143765,0.0002159,2]
[390960117,1760233091118,205.14070986,0.0002149,2]
[390960118,1760233092696,284.77089996,0.00021499,2]
[390960119,1760233101672,5000.0,0.0002159,2]
[390960120,1760233109565,666.24875242,0.0002159,2]
[390960121,1760233109588,1272.30084243,0.0002159,2]
[390960122,1760233124942,5000.0,0.0002159,2]
[390960123,1760233127078,692.65483638,0.000215,2]
[390960124,1760233133579,4307.35516362,0.0002159,2]
[390960125,1760233133603,692.64483638,0.0002159,2]
[390960126,1760233136264,251.15,0.00018958,2]
[390960127,1760233136722,502.31,0.00019861,2]
[390960128,1760233137147,753.46,0.00020764,2]
[390960129,1760233142363,300.0,0.00021589,2]
[390960130,1760233149953,5000.0,0.0002159,2]
[390960131,1760233173557,4700.01,0.0002159,2]
[390960132,1760233173580,299.99,0.0002159,2]
[390960134,1760233190735,751.66,0.0002159,2]
[390960135,1760233196134,5000.0,0.0002159,2]
[390960136,1760233201570,300.0,0.00021589,2]
[390960137,1760233202130,300.0,0.00021589,2]
[390960138,1760233202302,300.0,0.00021589,2]
[390960139,1760233207697,1200.0,0.00021589,2]
[390960140,1760233216702,285.89,0.00018966,2]
[390960141,1760233217105,571.77,0.00019869,2]
[390960143,1760233217535,857.66,0.00020772,2]
[390960144,1760233219224,5000.0,0.0002159,2]
[390960145,1760233227093,5000.0,0.0002159,2]
[390960146,1760233235872,5000.0,0.0002159,2]
[390960147,1760233237840,1511.0,0.0002159,2]
[390960148,1760233244463,3489.01,0.0002159,2]
[390960149,1760233244486,1510.99,0.0002159,2]
[390960150,1760233252604,2209.88494323,0.0002159,2]
[390960151,1760233262305,300.0,0.00021589,2]
[390960152,1760233267970,5000.0,0.0002159,2]
[390960153,1760233274342,7245.70255906,0.00030296,120]
[390960154,1760233290548,979.13505677,0.0002159,2]
[390960155,1760233290573,4020.86494323,0.0002159,2]
[390960156,1760233291170,280.85748405,0.00021498,2]
[390960157,1760233296437,284.81,0.00018955,2]
[390960158,1760233297064,569.63,0.00019858,2]
[390960159,1760233297480,854.44,0.00020761,2]
[390960160,1760233304530,520.743,0.0002159,2]
[390960161,1760233313013,5000.0,0.0002159,2]
[390960162,1760233320923,4479.267,0.0002159,2]
[390960163,1760233320949,520.733,0.0002159,2]
[390960164,1760233322238,300.0,0.00021589,2]
[390960165,1760233332973,5650.9,0.0002159,2]
[390960166,1760233336447,3528.377,0.0002159,2]
[390960167,1760233336470,1471.623,0.0002159,2]
[390960168,1760233358884,5000.0,0.0002159,2]
[390960169,1760233366991,3528.387,0.0002159,2]
[390960170,1760233367014,1471.613,0.0002159,2]
[390960171,1760233376690,282.02,0.00018963,2]
[390960172,1760233377108,564.04,0.00019866,2]
[390960173,1760233377672,846.06,0.00020769,2]
[390960174,1760233382217,300.0,0.00021589,2]
[390960175,1760233382246,719.47561418,0.000215,2]
[390960176,1760233382355,5000.0,0.0002159,2]
[390960177,1760233405585,3980.53438582,0.0002159,2]
[390960178,1760233405608,1019.46561418,0.0002159,2]
[390960179,1760233428715,5000.0,0.0002159,2]
[390960180,1760233431788,205.14070986,0.0002149,2]
[390960181,1760233436602,3775.40367596,0.0002159,2]
[390960182,1760233436624,1224.59632404,0.0002159,2]
[390960183,1760233442431,300.0,0.00021589,2]
[390960184,1760233445192,5000.0,0.0002159,2]
[390960185,1760233453487,3475.41367596,0.0002159,2]
[390960186,1760233453510,1524.58632404,0.0002159,2]
[390960187,1760233457067,277.02,0.00019149,2]
[390960188,1760233457634,554.05,0.0002006,2]
[390960189,1760233457924,831.07,0.00020972,2]
[390960190,1760233461807,5000.0,0.0002159,2]
[390960191,1760233470700,1813.28367596,0.0002159,2]
[390960192,1760233470726,3186.71632404,0.0002159,2]
[390960193,1760233478945,5000.0,0.0002159,2]
[390960194,1760233479401,168.4110056,0.00030301,120]
[390960195,1760233486534,245.75029857,0.00021497,2]
[390960196,1760233486886,331.2184271,0.0002159,2]
[390960197,1760233501275,300.0,0.00021589,2]
[390960198,1760233502077,300.0,0.00021589,2]
[390960199,1760233502286,636.32495029,0.0002159,2]
[390960200,1760233502308,4363.67504971,0.0002159,2]
[390960201,1760233502543,300.0,0.00021589,2]
[390960202,1760233507849,1200.0,0.00021589,2]
[390960203,1760233510834,955.67782397,0.0002159,2]
[390960204,1760233526147,3180.65712632,0.0002159,2]
[390960205,1760233526171,1819.34287368,0.0002159,2]
[390960206,1760233535982,273.23,0.00019158,2]
[390960207,1760233536405,546.46,0.00020071,2]
[390960208,1760233536807,819.68,0.00020983,2]
[390960209,1760233549478,5000.0,0.000215,2]
[390960210,1760233564437,3360.64,0.000215,2]
[390960211,1760233564460,1639.36,0.000215,2]
[390960212,1760233572442,5000.0,0.000215,2]
[390960213,1760233594579,3360.65,0.000215,2]
[390960214,1760233594604,1639.35,0.000215,2]
[390960215,1760233609639,1425.90085099,0.000215,2]
[390960216,1760233617529,5000.0,0.000215,2]
[390960217,1760233618151,165.04515383,0.0002149,2]
[390960218,1760233622125,256.39,0.00019143,2]
[390960219,1760233622562,512.78,0.00020055,2]
[390960220,1760233622996,769.17,0.00020966,2]
[390960221,1760233632562,231.37399518,0.000215,2]
[390960222,1760233632586,134.65285198,0.000215,2]
[390960223,1760233640419,5000.0,0.000215,2]
[390960224,1760233641113,-389.26711736,0.000215,2]
[390960225,1760233646866,1000.0,0.00020597,2]
[390960226,1760233662713,3865.35714802,0.000215,2]
[390960227,1760233662740,1134.64285198,0.000215,2]
[390960228,1760233667870,-90.3832921,0.000215,2]
[390960229,1760233667892,-113.74007261,0.000215,2]
[390960231,1760233677707,215.03151124,0.00021499,2]
[390960232,1760233678643,-186.25992739,0.000215,2]
[390960233,1760233678667,-153.57920516,0.000215,2]
[390960234,1760233680347,167.12710012,0.000214,2]
[390960235,1760233702472,261.45,0.00019174,2]
[390960236,1760233702879,522.9,0.00020087,2]
[390960237,1760233703308,784.35,0.00021,2]
[390960238,1760233703578,-5000.0,0.000215,2]
[390960239,1760233708125,0.01,0.000215,2]
[390960240,1760233708158,4999.99,0.000215,2]
[390960241,1760233716213,5000.0,0.000215,2]
[390960242,1760233723686,-300.0,0.000215,2]
[390960243,1760233723707,-25.70539461,0.000215,2]
[390960244,1760233725276,-260.16086745,0.000215,2]
[390960245,1760233726649,-14.13373794,0.000215,2]
[390960246,1760233726669,-246.02712951,0.000215,2]
[390960247,1760233731419,0.02,0.000215,2]
[390960248,1760233731443,4999.98,0.000215,2]
[390960249,1760233734051,-53.97287049,0.000215,2]
[390960250,1760233734075,-300.0,0.000215,2]
[390960251,1760233734100,-39.39684623,0.000215,2]
[390960252,1760233736964,-215.76933151,0.000215,2]
[390960253,1760233739785,5000.0,0.000215,2]
[390960254,1760233755143,0.03,0.000215,2]
[390960255,1760233755170,4999.97,0.000215,2]
[390960256,1760233763370,5000.0,0.000215,2]
[390960259,1760233778651,0.04,0.000215,2]
[390960260,1760233778674,4999.96,0.000215,2]
[390960261,1760233779828,300.0,0.000214,2]
[390960262,1760233786477,4700.05,0.000215,2]
[390960263,1760233786498,299.95,0.000215,2]
[390960264,1760233790768,120600.0,0.00024,30]
[390960265,1760233790950,300.0,0.000214,2]
[390960266,1760233794602,258.04,0.00019167,2]
[390960267,1760233795002,516.07,0.00020079,2]
[390960268,1760233795443,774.11,0.00020992,2]
[390960269,1760233801959,5000.0,0.000215,2]
[390960270,1760233809972,2851.84,0.000215,2]
[390960271,1760233809995,2148.16,0.000215,2]
[390960272,1760233825403,5000.0,0.000215,2]
[390960315,1760233831940,-287.03297148,0.000215,2]
[390960317,1760233831951,-300.0,0.000215,2]
[390960319,1760233831960,-1200.0,0.00021572,2]
[390960321,1760233831970,-500.0,0.00021573,2]
[390960340,1760233832151,-500.0,0.00021573,2]
[390960342,1760233832160,-500.0,0.00021573,2]
[390960343,1760233832169,-500.0,0.00021573,2]
[390960344,1760233832179,-500.0,0.00021573,2]
[390960345,1760233832188,-502.04849013,0.00021573,2]
[390960346,1760233832197,-500.0,0.00021573,2]
[390960347,1760233832206,-504.15885043,0.00021573,2]
[390960348,1760233832215,-453.60191066,0.00021573,2]
[390960349,1760233832224,-500.0,0.00021573,2]
[390960350,1760233832233,-500.0,0.00021573,2]
[390960351,1760233832242,-313.1410808,0.00021573,2]
[390960352,1760233832251,-500.0,0.00021573,2]
[390960353,1760233832260,-500.0,0.00021573,2]
[390960354,1760233832269,-500.0,0.00021573,2]
[390960355,1760233832279,-500.0,0.00021573,2]
[390960356,1760233832295,-1200.0,0.00021589,2]
[390960357,1760233832307,-300.0,0.00021589,2]
[390960358,1760233832317,-300.0,0.00021589,2]
[390960359,1760233832327,-300.0,0.00021589,2]
[390960360,1760233832336,-2404.45,0.0002159,3]
[390960361,1760233832346,-1202.23,0.0002159,3]
[390960362,1760233832355,-601.11,0.0002159,3]
[390960363,1760233832366,-300.56,0.0002159,3]
[390960364,1760233832376,-150.28,0.0002159,3]
[390960365,1760233832385,-450.84,0.0002159,3]
[390960366,1760233832395,-1640.2,0.0002159,10]
[390960367,1760233832404,-184.96,0.00021598,2]
[390960369,1760233832413,-500.0,0.00021599,2]
[390960371,1760233832423,-282.42529261,0.00021599,2]
[390960374,1760233832435,-217.57470739,0.00021599,2]
[390960376,1760233832445,-327.25849738,0.00021599,2]
[390960378,1760233832455,-338.68338375,0.00021599,2]
[390960380,1760233832465,-500.0,0.00021599,2]
[390960382,1760233832475,-500.0,0.00021599,2]
[390960384,1760233832484,-331.73091839,0.00021599,2]
[390960389,1760233832523,-168.26908161,0.00021599,2]
[390960391,1760233832532,-406.45091839,0.00021599,2]
[390960393,1760233832544,-93.54908161,0.00021599,2]
[390960395,1760233832554,-483.60432785,0.00021599,2]
[390960397,1760233832566,-16.39567215,0.00021599,2]
[390960400,1760233832576,-500.0,0.00021599,2]
[390960402,1760233832586,-457.17432785,0.00021599,2]
[390960404,1760233832598,-42.82567215,0.00021599,2]
[390960406,1760233832608,-500.0,0.00021599,2]
[390960407,1760233832618,-6166.36585462,0.000216,2]
[390960527,1760233833807,2851.85,0.000215,2]
[390960530,1760233833830,2148.15,0.000215,2]
[390960538,1760233835735,218.72896481,0.00021499,2]
[390960542,1760233837715,-300.0,0.000215,2]
[390960543,1760233837724,-500.0,0.00021599,2]
[390960544,1760233837733,-500.0,0.00021599,2]
[390960545,1760233837743,-414.90827436,0.00021599,2]
[390960546,1760233837752,-500.0,0.00021599,2]
[390960547,1760233837762,-500.0,0.00021599,2]
[390960548,1760233837771,-500.0,0.00021599,2]
[390960549,1760233837780,-500.0,0.00021599,2]
[390960550,1760233837789,-500.0,0.00021599,2]
[390960551,1760233837798,-500.0,0.00021599,2]
[390960552,1760233837807,-500.0,0.00021599,2]
[390960553,1760233837816,-500.0,0.00021599,2]
[390960554,1760233837826,-500.0,0.00021599,2]
[390960555,1760233837835,-500.0,0.00021599,2]
[390960556,1760233837848,-500.0,0.00021599,2]
[390960557,1760233837857,-564.83648814,0.00021599,2]
[390960558,1760233837867,-500.0,0.00021599,2]
[390960559,1760233837876,-500.0,0.00021599,2]
[390960560,1760233837886,-248.38260178,0.00021599,2]
[390960561,1760233837895,-500.0,0.00021599,2]
[390960562,1760233837904,-500.0,0.00021599,2]
[390960563,1760233837913,-500.0,0.00021599,2]
[390960564,1760233837922,-500.0,0.00021599,2]
[390960565,1760233837931,-500.0,0.00021599,2]
[390960566,1760233837940,-500.0,0.00021599,2]
[390960567,1760233837950,-500.0,0.00021599,2]
[390960568,1760233837959,-500.0,0.00021599,2]
[390960569,1760233837969,-500.0,0.00021599,2]
[390960570,1760233837979,-389.83643922,0.00021599,2]
[390960571,1760233837991,-110.16356078,0.00021599,2]
[390960572,1760233838001,-500.0,0.00021599,2]
[390960573,1760233838010,-500.0,0.00021599,2]
[390960574,1760233838019,-500.0,0.00021599,2]
[390960575,1760233838029,-500.0,0.00021599,2]
[390960576,1760233838039,-500.0,0.00021599,2]
[390960577,1760233838048,-500.0,0.00021599,2]
[390960578,1760233838058,-500.0,0.00021599,2]
[390960579,1760233838068,-500.0,0.00021599,2]
[390960580,1760233838078,-500.0,0.00021599,2]
[390960581,1760233838087,-500.0,0.00021599,2]
[390960582,1760233838098,-500.0,0.00021599,2]
[390960583,1760233838110,-500.0,0.00021599,2]
[390960584,1760233838121,-500.0,0.00021599,2]
[390960585,1760233838130,-500.0,0.00021599,2]
[390960586,1760233838140,-500.0,0.00021599,2]
[390960587,1760233838151,-263833.53414538,0.000216,2]
[390960588,1760233838160,-500.0,0.000216,2]
[390960589,1760233838169,-500.0,0.000216,2]
[390960590,1760233838182,-512.04,0.000216,2]
[390960591,1760233838192,-1297.77052359,0.00021817,2]
[390960592,1760233838201,-3303.55314428,0.00021817,2]
[390960593,1760233838211,-177.37056068,0.00021817,2]
[390960594,1760233838220,-184.96545383,0.00021872,2]
[390960595,1760233838231,-500.0,0.00021873,2]
[390960596,1760233838240,-500.0,0.00021874,2]
[390960597,1760233838250,-500.0,0.00021874,2]
[390960598,1760233838259,-151.0,0.000219,4]
[390960599,1760233838270,-151.0,0.000219,4]
[390960600,1760233838279,-277.33177853,0.00021904,2]
[390960601,1760233838289,-151.16571882,0.00021904,2]
[390960602,1760233838298,-1032.14,0.00021905,2]
[390960603,1760233838310,-501.65988507,0.00021917,2]
[390960604,1760233838320,-501.35594224,0.00021917,2]
[390960605,1760233838330,-500.0,0.00021917,2]
[390960606,1760233838340,-500.0,0.00021917,2]
[390960607,1760233838349,-559.69181642,0.00021917,2]
[390960608,1760233838359,-501.13489774,0.00021917,2]
[390960609,1760233838370,-501.84991835,0.00021917,2]
[390960610,1760233838379,-500.0,0.00021917,2]
[390960611,1760233838389,-500.0,0.00021917,2]
[390960612,1760233838399,-500.0,0.00021917,2]
[390960613,1760233838409,-506.70154797,0.00021917,2]
[390960614,1760233838419,-501.71746671,0.00021917,2]
[390960615,1760233838429,-506.38831135,0.00021917,2]
[390960616,1760233838439,-501.35608783,0.00021917,2]
[390960617,1760233838448,-500.0,0.00021917,2]
[390960618,1760233838458,-501.6634345,0.00021917,2]
[390960619,1760233838467,-500.0,0.00021917,2]
[390960620,1760233838477,-500.0,0.00021917,2]
[390960621,1760233838487,-156.91567172,0.00021917,2]
[390960622,1760233838496,-500.86531841,0.00021917,2]
[390960623,1760233838507,-500.0,0.00021917,2]
[390960624,1760233838516,-501.28206822,0.00021917,2]
[390960625,1760233838525,-500.0,0.00021917,2]
[390960626,1760233838535,-504.34992963,0.00021917,2]
[390960627,1760233838544,-500.0,0.00021917,2]
[390960628,1760233838553,-500.0,0.00021917,2]
[390960629,1760233838562,-500.0,0.00021917,2]
[390960630,1760233838572,-500.0,0.00021917,2]
[390960631,1760233838581,-506.56328022,0.00021917,2]
[390960632,1760233838590,-500.0,0.00021917,2]
[390960633,1760233838600,-159.50910813,0.00021917,2]
[390960634,1760233838610,-500.56387438,0.00021917,2]
[390960635,1760233838620,-500.0,0.00021917,2]
[390960636,1760233838629,-500.0,0.00021917,2]
[390960637,1760233838639,-500.0,0.00021917,2]
[390960638,1760233838648,-501.75950583,0.00021917,2]
[390960639,1760233838657,-503.11463153,0.00021917,2]
[390960640,1760233838667,-503.24684925,0.00021917,2]
[390960641,1760233838676,-500.0,0.00021917,2]
[390960642,1760233838685,-500.0,0.00021917,2]
[390960643,1760233838694,-500.0,0.00021917,2]
[390960644,1760233838704,-500.0,0.00021917,2]
[390960645,1760233838713,-500.0,0.00021917,2]
[390960646,1760233838723,-500.0,0.00021917,2]
[390960647,1760233838732,-391.04379632,0.00021917,2]
[390960648,1760233838742,-500.0,0.00021917,2]
[390960649,1760233838751,-500.0,0.00021917,2]
[390960650,1760233838761,-500.0,0.00021917,2]
[390960651,1760233838770,-501.2574283,0.00021917,2]
[390960652,1760233838779,-500.0,0.00021917,2]
[390960653,1760233838788,-500.0,0.00021917,2]
[390960654,1760233838798,-500.0,0.00021917,2]
[390960655,1760233838807,-500.0,0.00021917,2]
[390960656,1760233838817,-501.97127889,0.00021917,2]
[390960657,1760233838827,-480.34036406,0.00021917,2]
[390960658,1760233838837,-500.0,0.00021917,2]
[390960659,1760233838847,-552.11883048,0.00021917,2]
[390960660,1760233838857,-501.96049833,0.00021917,2]
[390960661,1760233838869,-500.0,0.00021917,2]
[390960662,1760233838879,-500.0,0.00021917,2]
[390960663,1760233838888,-163.71237035,0.00021917,2]
[390960664,1760233838898,-500.0,0.00021917,2]
[390960665,1760233838908,-501.61551065,0.00021917,2]
[390960666,1760233838918,-500.0,0.00021917,2]
[390960667,1760233838927,-500.0,0.00021917,2]
[390960668,1760233838937,-500.0,0.00021917,2]
[390960669,1760233838947,-500.0,0.00021917,2]
[390960670,1760233838956,-500.0,0.00021917,2]
[390960671,1760233838966,-500.0,0.00021917,2]
[390960672,1760233838975,-485.90839569,0.00021917,2]
[390960673,1760233838986,-500.0,0.00021917,2]
[390960674,1760233838995,-500.0,0.00021917,2]
[390960675,1760233839005,-500.0,0.00021917,2]
[390960676,1760233839016,-500.0,0.00021917,2]
[390960677,1760233839026,-500.0,0.00021917,2]
[390960678,1760233839035,-500.0,0.00021917,2]
[390960679,1760233839045,-500.0,0.00021917,2]
[390960680,1760233839056,-500.0,0.00021917,2]
[390960681,1760233839066,-500.0,0.00021917,2]
[390960682,1760233839076,-500.0,0.00021917,2]
[390960683,1760233839085,-500.0,0.00021917,2]
[390960684,1760233839096,-500.0,0.00021917,2]
[390960685,1760233839113,-500.0,0.00021917,2]
[390960686,1760233839124,-500.0,0.00021917,2]
[390960687,1760233839135,-501.92025699,0.00021917,2]
[390960688,1760233839148,-500.0,0.00021917,2]
[390960689,1760233839158,-500.0,0.00021917,2]
[390960690,1760233839167,-564.36705397,0.00021917,2]
[390960691,1760233839177,-500.0,0.00021917,2]
[390960692,1760233839188,-500.0,0.00021917,2]
[390960693,1760233839198,-583.42470705,0.00021917,2]
[390960694,1760233839208,-502.43922224,0.00021917,2]
[390960695,1760233839218,-500.0,0.00021917,2]
[390960696,1760233839228,-158.1048311,0.00021917,2]
[390960697,1760233839238,-500.0,0.00021917,2]
[390960698,1760233839248,-500.0,0.00021917,2]
[390960699,1760233839257,-500.0,0.00021917,2]
[390960700,1760233839267,-332.38912857,0.00021917,2]
[390960701,1760233839276,-500.0,0.00021917,2]
[390960702,1760233839287,-500.0,0.00021917,2]
[390960703,1760233839296,-500.0,0.00021917,2]
[390960704,1760233839306,-613.99408666,0.00021917,2]
[390960705,1760233839316,-500.0,0.00021917,2]
[390960706,1760233839326,-501.37951648,0.00021917,2]
[390960707,1760233839335,-500.0,0.00021917,2]
[390960708,1760233839345,-500.0,0.00021917,2]
[390960709,1760233839354,-500.0,0.00021917,2]
[390960710,1760233839366,-500.0,0.00021917,2]
[390960717,1760233839530,-608.1720898,0.00021917,2]
[390960719,1760233839541,-500.0,0.00021917,2]
[390960721,1760233839551,-504.88112365,0.00021917,2]
[390960722,1760233839561,-500.0,0.00021917,2]
[390960723,1760233839570,-500.0,0.00021917,2]
[390960724,1760233839579,-500.0,0.00021917,2]
[390960725,1760233839588,-500.0,0.00021917,2]
[390960726,1760233839598,-500.0,0.00021917,2]
[390960727,1760233839608,-502.10541315,0.00021917,2]
[390960729,1760233839619,-500.0,0.00021917,2]
[390960730,1760233839628,-500.0,0.00021917,2]
[390960731,1760233839637,-501.97448913,0.00021917,2]
[390960732,1760233839646,-626.76648261,0.00021917,2]
[390960733,1760233839656,-504.63531446,0.00021917,2]
[390960735,1760233839665,-500.0,0.00021917,2]
[390960736,1760233839674,-500.0,0.00021917,2]
[390960737,1760233839683,-502.40446751,0.00021917,2]
[390960738,1760233839692,-500.0,0.00021917,2]
[390960739,1760233839701,-500.0,0.00021917,2]
[390960740,1760233839710,-500.0,0.00021917,2]
[390960741,1760233839719,-500.0,0.00021917,2]
[390960742,1760233839728,-500.97814579,0.00021917,2]